[Event "Turkish Championship 2022"]
[Site "Kemer-Antalya"]
[Date "2022.11.28"]
[Round "4.4"]
[White "Yaran, Siar"]
[Black "Gokbulut, Julia"]
[Result "1-0"]
[ECO "D46"]
[WhiteElo "2291"]
[BlackElo "1912"]
[Annotator "TA"]
[PlyCount "55"]
[EventDate "2022.11.25"]
[EventCountry "TUR"]
[SourceTitle "playchess.com"]
[Source "ChessBase"]
[SourceQuality "1"]
[TimeControl "40/5400+30:1800+30"]

{[%evp 17,55,17,18,28,55,61,43,44,65,63,42,55,67,55,103,120,201,191,200,146,142,134,143,132,168,168,634,624,981,605,597,583,2302,1918,1814,2994,2661,2572,29990,29991]} 1. d4 {[%emt 0:01:00]} Nf6 {[%emt 0:01:00]} 2. c4 {[%emt 0:00:00]} e6 {[%emt 0:01:30]} 3. Nc3 {[%emt 0:00:00]} Bb4 {[%emt 0:00:30]} 4. e3 {[%emt 0:00:00]} O-O {[%emt 0:00:30]} 5. Bd3 {[%emt 0:00:00][%cal Bf1d3,Bd3c4,Bc4a2][%mdl 32]} d5 {[%emt 0:00:30]} 6. a3 {[%emt 0:00:30]} Be7 {[%emt 0:00:30]} 7. Nf3 {[%emt 0:01:30]} dxc4 {[%emt 0:01:30]} 8. Bxc4 {[%emt 0:03:30]} c5 {[%emt 0:01:30]} 9. O-O {[%emt 0:03:30]} Nbd7 {[%emt 0:01:30]} 10. Qe2 {[%emt 0:05:30] D46: Semi-Slav: 5 e3 Nbd7 6 Bd3, Black avoids the Meran.} Nb6 {[%emt 0:04:30]} 11. dxc5 {[%emt 0:04:30]} Bxc5 {[%emt 0:00:30]} 12. Ba2 {[%emt 0:00:30] White is slightly better.} Bd7 {[%emt 0:09:30] [#]} 13. e4 $146 {[%emt 0:08:30]} ({Predecessor:} 13. b4 Be7 14. Rd1 Qe8 15. Bb2 Na4 16. Nxa4 Bxb4 17. axb4 Bxa4 18. Rd2 Rc8 19. Bxf6 gxf6 20. Nd4 {1-0 (31) Saether,L-Lahlum,I (1831) Gausdal 2008}) 13... Rc8 {[%emt 0:08:30]} 14. Bg5 {[%emt 0:02:30] Strongly threatening e5.} Be7 {[%emt 0:01:30]} 15. Rfd1 {[%emt 0:11:30]} Ne8 {[%emt 0:10:30]} (15... Qe8 $14 {is superior.}) 16. Bf4 {[%emt 0:11:30]} Bxa3 {[%emt 0:12:30] [#]} 17. Ne5 $1 $18 {[%emt 0:01:30]} Bb4 {[%emt 0:11:30]} 18. Nxd7 {[%emt 0:01:30]} Nxd7 {[%emt 0:03:30]} 19. Qb5 {[%emt 0:00:30][%csl LRb4,LRb7,LRd7]} Bxc3 {[%emt 0:04:30]} 20. Rxd7 {[%emt 0:09:30] White has more active pieces.} Qa5 {[%emt 0:03:30]} 21. Qxb7 {[%emt 0:00:00]} ({Inferior is} 21. Rxb7 Qxb5 22. Rxb5 a6 $11) 21... Nf6 $2 {[%emt 0:02:22] [#]} (21... Be5) 22. Rxf7 $3 {[%emt 0:00:00][%mdl 512]} Rcd8 {[%emt 0:09:25]} (22... Kh8 23. bxc3) 23. Rxf8+ {[%emt 0:20:43]} Kxf8 {[%emt 0:00:38]} 24. g3 {[%emt 0:00:10][%cal Oa2e6] Threatens to win with Bxe6!} ({Weaker is} 24. bxc3 Qxa2 25. Rf1 (25. Bd6+ $2 Rxd6 26. Qb8+ Kf7 $19) 25... Qc4 $16) 24... Bb4 {[%emt 0:01:24]} 25. Bc7 {[%emt 0:00:45] Inhibits Qb6. A strong pair of Bishops.} Qc5 {[%emt 0:05:42]} 26. Bxd8 {[%emt 0:00:27]} Ng4 {[%emt 0:00:29]} 27. Rf1 {[%emt 0:02:11]} (27. Bxe6 $2 {gets mated.} Qxf2+ 28. Kh1 Qxh2#) 27... Qh5 {[%emt 0:00:16]} 28. Qxb4+ {[%emt 0:00:00] Weighted Error Value: White=0.52/Black=1.00} 1-0

[Event "Turkish Championship 2022"]
[Site "Kemer-Antalya"]
[Date "2022.11.28"]
[Round "4.5"]
[White "Agdelen, Huseyin Can"]
[Black "Isik, Alparslan"]
[Result "1/2-1/2"]
[ECO "B33"]
[WhiteElo "2416"]
[BlackElo "2463"]
[Annotator "TA"]
[PlyCount "162"]
[EventDate "2022.11.25"]
[EventCountry "TUR"]
[SourceTitle "playchess.com"]
[Source "ChessBase"]
[SourceQuality "1"]
[TimeControl "40/5400+30:1800+30"]

{[%evp 23,162,15,41,33,78,68,66,67,84,87,74,81,90,89,161,158,163,166,168,164,194,191,209,205,232,245,231,226,269,134,134,90,178,187,190,108,219,132,154,151,225,235,237,166,148,149,130,142,137,119,99,102,275,275,275,206,206,206,206,206,209,199,196,162,162,162,162,162,162,162,162,162,162,162,581,167,162,147,147,147,147,147,147,147,147,147,147,147,147,147,147,147,147,93,93,93,93,93,93,93,93,0,100,-8,141,141,141,141,389,20,24,8,20,20,24,18,18,4,18,18,18,18,18,18,18,18,18,18,24,18,18,18,18,18,20,18,20,18,18,0,0]} 1. e4 {[%emt 0:04:00]} c5 {[%emt 0:01:00]} 2. Nf3 {[%emt 0:00:00]} e6 {[%emt 0:00:00]} 3. d4 {[%emt 0:08:00]} cxd4 {[%emt 0:01:00]} 4. Nxd4 {[%emt 0:00:30]} Nf6 {[%emt 0:00:30]} 5. Nc3 {[%emt 0:00:30]} Nc6 {[%emt 0:00:00]} 6. Ndb5 {[%emt 0:01:30]} d6 {[%emt 0:00:00]} 7. Bf4 {[%emt 0:02:30]} e5 {[%emt 0:00:30]} 8. Bg5 {[%emt 0:00:00]} a6 {[%emt 0:00:00]} 9. Na3 {[%emt 0:00:00]} b5 {[%emt 0:00:00]} 10. Bxf6 {[%emt 0:05:30]} gxf6 {[%emt 0:00:30]} 11. Nd5 {[%emt 0:00:30]} Bg7 {[%emt 0:10:30]} 12. g3 {[%emt 0:06:30]} O-O {[%emt 0:08:30]} 13. Bg2 {[%emt 0:05:30] B33: Sicilian: Pelikan and Sveshnikov Variations.} Be6 {[%emt 0:14:30]} 14. O-O {[%emt 0:04:30]} Rb8 {[%emt 0:04:30]} 15. c3 {[%emt 0:06:30] White is slightly better.} Qd7 {[%emt 0:06:30] [#]} 16. Nc2 $146 {[%emt 0:07:30][%cal Ba3c2,Bc2e3,Be3c4][%mdl 32]} ({Predecessor:} 16. Qh5 Ne7 17. Nxe7+ Qxe7 18. Nc2 Kh8 19. Ne3 Rg8 20. Bh3 Bxh3 21. Qxh3 Qe6 22. Nf5 Bf8 23. Rfd1 {1-0 (51) Lawrenz,A (2056)-Cirkovic,R (1928) Berlin 2005}) 16... f5 {[%emt 0:00:00]} 17. exf5 {[%emt 0:03:30]} Bxf5 {[%emt 0:00:00]} 18. a4 {[%emt 0:01:30]} bxa4 {[%emt 0:05:30]} (18... a5 $16) 19. Nce3 $18 {[%emt 0:01:30]} Be6 {[%emt 0:00:30]} (19... Rxb2 $2 20. Nxf5 Qxf5 21. Qxa4 $18) 20. Qxa4 {[%emt 0:01:30]} Kh8 {[%emt 0:00:30]} (20... Rxb2 $2 21. Qxc6 $3 {[%mdl 512]} Qxc6 22. Ne7+ Kh8 23. Nxc6 $18) 21. Nc4 $1 {[%emt 0:06:30]} (21. Qxa6 f5 $16) 21... Rb5 {[%emt 0:02:30]} 22. Qxa6 {[%emt 0:06:30]} Nb8 {[%emt 0:03:30]} (22... Rxd5 $2 23. Nb6 $18) 23. Qa8 {[%emt 0:05:30]} (23. Qxd6 Bxd5 24. Qxd7 Nxd7 25. Bxd5 Rxd5 $17) 23... f5 {[%emt 0:12:30]} 24. Rfd1 {[%emt 0:07:55]} e4 {[%emt 0:11:07]} 25. Ndb6 {[%emt 0:10:19]} Qe7 {[%emt 0:00:40]} 26. Qa4 {[%emt 0:00:20]} ({Don't do} 26. Rxd6 $6 Rxb2 27. Nd5 Bxd5 28. Qxd5 Rb7 $18) (26. Ra7 $18 {has better winning chances.} Qe8 27. Rxd6 (27. Nxd6 Qh5 $11)) 26... Rc5 $16 {[%emt 0:00:54]} 27. Ne3 {[%emt 0:00:24]} (27. Rxd6 $2 {too greedy.} Bxc4 28. Nxc4 Rxc4 $1 {[%mdl 512]} 29. Qxc4 Qxd6 $19) 27... Qf7 {[%emt 0:05:06]} (27... Nd7 $16 28. Nxd7 Bxd7) 28. Rxd6 $18 {[%emt 0:01:52]} Be5 {[%emt 0:00:13] [#]} 29. Rd2 {[%emt 0:01:42]} (29. Rxe6 $1 $18 Qxe6 30. Qb4) 29... f4 {[%emt 0:00:08]} (29... Nc6 $16) 30. Qxe4 {[%emt 0:01:02]} fxe3 {[%emt 0:00:30]} 31. Qxe3 {[%emt 0:01:03]} Qc7 {[%emt 0:02:46]} (31... Rb5 $16 {was necessary.}) 32. Na8 {[%emt 0:01:04]} Qe7 {[%emt 0:00:01]} 33. b4 {[%emt 0:00:27][%cal Bb2b4,Bb4c5][%mdl 32]} Bxc3 {[%emt 0:00:34]} (33... Rxc3 $2 34. Qxe5+ Qf6 35. Qxf6+ Rxf6 36. Rd8+ Kg7 37. Rxb8 $18) 34. bxc5 {[%emt 0:00:32]} Bxa1 {[%emt 0:00:00] A strong pair of Bishops.} 35. Re2 {[%emt 0:00:00]} Re8 {[%emt 0:03:31]} 36. c6 $36 {[%emt 0:00:00][%mdl 2048] White is on the roll.} Na6 {[%emt 0:00:30] [#] Prevents c7.} 37. c7 $1 {[%emt 0:00:18] White is more active.} Rxa8 $2 {[%emt 0:08:10]} 38. Bxa8 {[%emt 0:00:49]} Nxc7 {[%emt 0:00:01] [#]} 39. Bd5 $1 {[%emt 0:00:00][%mdl 512]} Nxd5 {[%emt 0:00:00]} 40. Qxe6 {[%emt 0:00:00]} Qxe6 {[%emt 0:00:00]} 41. Rxe6 {[%emt 0:02:13]} Kg7 {[%emt 0:02:49]} 42. Kg2 {[%emt 0:01:30]} Bf6 {[%emt 0:02:30]} 43. f4 {[%emt 0:05:30]} h5 {[%emt 0:02:30]} 44. Kf3 {[%emt 0:01:30] Threatens to win with h3.} Ne7 {[%emt 0:02:30]} 45. Ke4 {[%emt 0:02:30]} Ng8 {[%emt 0:00:30]} 46. h3 {[%emt 0:00:30]} Nh6 {[%emt 0:00:30] Inhibits g4.} 47. Rb6 {[%emt 0:00:30]} Kg6 {[%emt 0:04:30]} 48. Kf3 {[%emt 0:04:23] g4 is the strong threat.} Kf5 {[%emt 0:01:38] Against g4+} (48... Kg7 {is tougher.} 49. g4 hxg4+ 50. hxg4 Nf7) 49. Rb5+ $2 {[%emt 0:01:05]} (49. Ra6 {Strongly threatening Rb6.} Nf7 50. g4+ Kg6 51. Ke4) 49... Kg6 {[%emt 0:00:22]} 50. g4 {[%emt 0:02:47]} hxg4+ {[%emt 0:00:30]} 51. hxg4 {[%emt 0:00:00]} Nf7 {[%emt 0:00:30]} 52. Rb1 {[%emt 0:01:17]} Bd8 {[%emt 0:02:11]} 53. Ra1 {[%emt 0:10:27]} Bf6 {[%emt 0:00:13]} 54. Ra6 {[%emt 0:00:11] Black must now prevent Ke4.} Kg7 {[%emt 0:00:04]} 55. Ke4 {[%emt 0:01:20]} Bh4 {[%emt 0:03:04]} 56. Rc6 {[%emt 0:02:30]} Bd8 {[%emt 0:00:09]} 57. Kd5 {[%emt 0:00:59] aiming for Ke6.} Nh6 {[%emt 0:00:55]} 58. Rd6 {[%emt 0:01:20]} ({White should play} 58. Rc2) 58... Bh4 $16 {[%emt 0:00:36]} 59. f5 {[%emt 0:01:03] Hoping for Ke6.} Nf7 {[%emt 0:03:38]} 60. Rg6+ {[%emt 0:00:39]} Kh7 {[%emt 0:00:01]} 61. Ke4 {[%emt 0:00:06]} Bg5 {[%emt 0:01:23]} 62. Kd5 {[%emt 0:00:53]} Bh4 $1 {[%emt 0:00:30]} 63. Ke6 {[%emt 0:00:30]} (63. Rb6 $16) 63... Ng5+ {[%emt 0:00:00]} (63... Nh8 $11) 64. Ke7 {[%emt 0:00:14]} Nf3+ {[%emt 0:00:31]} 65. Kf8 {[%emt 0:00:19]} Ne5 $2 {[%emt 0:00:18]} (65... Bd8 $16 {is a better defense.}) 66. Rd6 $2 {[%emt 0:00:44]} (66. Re6 $18 Nf3 67. Re3) 66... Bf2 {[%emt 0:01:13][%cal Of2c5] And now ...Bc5! would win.} 67. Rd2 {[%emt 0:00:41]} Bc5+ {[%emt 0:00:35]} 68. Ke8 {[%emt 0:00:30] Threatening mate with Rd5.} Nxg4 {[%emt 0:00:00]} 69. Rg2 {[%emt 0:00:00]} Ne3 {[%emt 0:00:42][%csl LRf5,LRg2]} 70. Rg5 {[%emt 0:00:58]} Kh6 {[%emt 0:02:35] Against f6} 71. Rg6+ {[%emt 0:00:03]} Kh5 {[%emt 0:00:22]} 72. Rc6 {[%emt 0:00:30]} Nxf5 {[%emt 0:00:30]} 73. Rxc5 $11 {[%emt 0:00:00][%mdl 4096] Endgame KR-KN} Kg4 {[%emt 0:00:00]} 74. Kf7 {[%emt 0:00:04]} Kf4 {[%emt 0:00:00]} 75. Kf6 {[%emt 0:00:28] White wants to mate with Rc4+.} Nd6 {[%emt 0:00:11] Prevents Rc4+.} 76. Ra5 {[%emt 0:00:40]} Ne4+ {[%emt 0:00:30] The position is equal.} 77. Ke6 {[%emt 0:00:00]} Ng5+ {[%emt 0:00:00]} 78. Kd5 {[%emt 0:00:50]} Kf5 {[%emt 0:00:14]} 79. Ra1 {[%emt 0:00:48]} Kf4 {[%emt 0:00:19]} 80. Rf1+ {[%emt 0:00:05]} Nf3 {[%emt 0:00:30]} 81. Rxf3+ {[%emt 0:00:30]} Kxf3 {[%emt 0:00:00] Weighted Error Value: White=0.28 (precise) /Black=0.29 (precise)} 1/2-1/2

[Event "Turkish Championship 2022"]
[Site "Kemer-Antalya"]
[Date "2022.11.29"]
[Round "5.1"]
[White "Isik, Alparslan"]
[Black "Yavuz, Efe Metehan"]
[Result "1/2-1/2"]
[ECO "B00"]
[WhiteElo "2463"]
[BlackElo "2256"]
[Annotator "TA"]
[PlyCount "116"]
[EventDate "2022.11.25"]
[EventCountry "TUR"]
[SourceTitle "playchess.com"]
[Source "ChessBase"]
[SourceQuality "1"]
[TimeControl "40/5400+30:1800+30"]

{[%evp 9,116,45,52,53,67,41,60,42,40,10,20,12,14,0,20,0,0,0,0,0,0,0,22,10,14,0,12,0,0,0,7,0,13,0,0,7,21,0,0,0,0,0,0,0,0,0,49,54,86,89,131,100,112,110,104,95,112,112,115,77,85,84,82,94,138,127,128,122,125,114,100,98,112,86,97,23,35,35,42,0,0,0,19,0,0,0,0,0,0,0,0,0,0,0,0,0,0,0,0,0,0,0,0,0,0,0,0,0,0]} 1. e4 {[%emt 0:01:00]} b6 {[%emt 0:02:00]} 2. d4 {[%emt 0:02:30]} Bb7 {[%emt 0:00:30]} 3. Bd3 {[%emt 0:01:30]} e6 {[%emt 0:01:30]} 4. Nf3 {[%emt 0:02:30]} d5 {[%emt 0:01:30]} 5. exd5 {[%emt 0:02:30]} Qxd5 {[%emt 0:00:30]} 6. O-O {[%emt 0:11:30] B00: Queen's Fianchetto Defence, Nimzowitsch Defence.} Nf6 {[%emt 0:00:30]} 7. Bg5 {[%emt 0:02:30]} Be7 {[%emt 0:08:30]} 8. Nc3 {[%emt 0:00:30] White is slightly better.} Qd8 {[%emt 0:05:30]} 9. Bb5+ {[%emt 0:10:30]} c6 $1 {[%emt 0:05:30]} 10. Bd3 {[%emt 0:03:30]} O-O {[%emt 0:19:30]} 11. Ne5 {[%emt 0:04:30] [#]} h6 $146 {[%emt 0:04:30]} ({Predecessor:} 11... Nfd7 12. Qh5 h6 13. Bxh6 Nf6 14. Qh3 Qxd4 15. Rae1 gxh6 16. Qxh6 Ba6 17. Bxa6 Nxa6 18. Re3 {1-0 (18) Ohlsson-Torreil corr 1983}) 12. Be3 {[%emt 0:05:30]} c5 $1 {[%emt 0:06:30]} 13. dxc5 {[%emt 0:09:30]} Bxc5 {[%emt 0:00:30]} 14. Bxc5 {[%emt 0:02:30]} bxc5 {[%emt 0:00:00]} 15. Qe2 {[%emt 0:00:30]} Qc7 {[%emt 0:09:00]} 16. Nb5 {[%emt 0:03:30]} Qe7 {[%emt 0:00:30]} 17. Rad1 {[%emt 0:03:30][%cal Od3g6]} Nc6 {[%emt 0:02:30]} 18. Bc4 {[%emt 0:04:30][%cal Oe5f7]} Rad8 {[%emt 0:02:30]} 19. c3 {[%emt 0:04:30]} Ba8 {[%emt 0:06:30]} 20. f3 {[%emt 0:02:30]} (20. Rfe1 {looks sharper.} Nxe5 21. Qxe5 Qb7 22. f3) 20... Bb7 {[%emt 0:05:26]} 21. Rfe1 {[%emt 0:00:30][%cal Oe5f7] [#] Nxf7! is the strong threat.} Rxd1 {[%emt 0:01:27]} 22. Rxd1 {[%emt 0:00:30][%cal Oe5f7] Black must now prevent Nxf7!} Na5 {[%emt 0:07:35]} 23. Nd6 {[%emt 0:01:40]} Bd5 {[%emt 0:06:41]} 24. Nb5 {[%emt 0:09:45][%cal Oe5g6]} Nxc4 {[%emt 0:00:37]} 25. Nxc4 {[%emt 0:00:01]} Nh5 {[%emt 0:01:21]} 26. Nba3 {[%emt 0:05:16]} (26. Rxd5 $2 Nf4 27. Qe3 Nxd5 $19) 26... Qg5 {[%emt 0:00:41]} 27. Qe5 {[%emt 0:01:32]} Qg6 {[%emt 0:00:11]} (27... Qxe5 $11 28. Nxe5 Bxa2) 28. Kf2 {[%emt 0:00:50]} Bxc4 {[%emt 0:01:46]} 29. Nxc4 {[%emt 0:00:34]} Nf6 {[%emt 0:00:16]} 30. Ne3 {[%emt 0:00:00] Inhibits Nd5.} Nd5 {[%emt 0:00:59]} 31. Nxd5 {[%emt 0:00:19]} exd5 {[%emt 0:00:00]} 32. Qxd5 $16 {[%emt 0:02:50][%mdl 4096] Endgame KQR-KQR} Qb6 {[%emt 0:00:00]} 33. Rd2 {[%emt 0:00:39]} Re8 {[%emt 0:00:40]} 34. c4 {[%emt 0:00:32]} Qf6 {[%emt 0:00:28]} 35. g3 {[%emt 0:00:44] Against Qh4} Qe7 {[%emt 0:00:22]} 36. Qe4 {[%emt 0:00:21] Inhibits Qe1+. Active counter play!} Qf8 {[%emt 0:00:44]} 37. Qd3 {[%emt 0:00:16]} Qe7 {[%emt 0:00:47]} 38. Re2 {[%emt 0:01:13] Prevents Qe1+.} Qf8 {[%emt 0:00:02]} 39. Rxe8 {[%emt 0:00:31]} Qxe8 {[%emt 0:00:00] KQ-KQ} 40. Qd5 {[%emt 0:00:00]} Qb8 {[%emt 0:00:00]} 41. Qd2 {[%emt 0:05:27]} ({Of course not} 41. Qxc5 $6 Qxb2+ 42. Ke3 Qxh2 $11) 41... Qe5 {[%emt 0:07:57]} 42. b4 {[%emt 0:04:30]} (42. Qd8+ $16 Kh7 43. Qd3+ g6 44. b3) 42... cxb4 $11 {[%emt 0:02:30]} 43. Qxb4 {[%emt 0:00:30]} Qd4+ {[%emt 0:01:30]} 44. Ke2 {[%emt 0:02:30]} Qg1 $1 {[%emt 0:06:41] The position is equal.} 45. Kd3 {[%emt 0:08:23]} Qf1+ {[%emt 0:05:20]} 46. Ke3 {[%emt 0:00:25]} (46. Kc2 $5 {[%cal Rb4b8]}) 46... Qg1+ $1 {[%emt 0:00:22]} 47. Ke4 {[%emt 0:00:11]} Qxh2 {[%emt 0:00:53]} 48. Qb8+ {[%emt 0:00:41]} Kh7 {[%emt 0:00:03]} 49. c5 {[%emt 0:03:12]} ({Much weaker is} 49. Qxa7 Qe2+ 50. Qe3 Qxc4+ 51. Kf5 Qxa2 $17) 49... Qxa2 {[%emt 0:02:47]} 50. Qd6 {[%emt 0:02:13]} a5 {[%emt 0:03:05] Hoping for ...a4.} 51. c6 {[%emt 0:00:36]} a4 {[%emt 0:00:57] [#] And now ...a3 would win.} 52. c7 {[%emt 0:06:54]} Qc4+ {[%emt 0:03:35]} 53. Ke3 {[%emt 0:00:30] Intending Qd3+ and mate.} a3 {[%emt 0:00:30]} 54. Qd3+ {[%emt 0:00:00]} ({Reject} 54. Qxa3 Qxc7 55. Qd3+ g6 $17) 54... Qxd3+ {[%emt 0:00:00]} 55. Kxd3 {[%emt 0:00:15]} a2 {[%emt 0:00:00]} 56. c8=Q {[%emt 0:00:30] White threatens Qa6 and mate.} a1=Q {[%emt 0:00:17] Against Qa6. Threatens to win with ...Qd1+.} 57. Qf5+ {[%emt 0:00:00]} Kg8 {[%emt 0:00:00] ( -> ...Qb1+)} 58. Qc8+ {[%emt 0:00:00]} Kh7 {[%emt 0:00:00] Weighted Error Value: White=0.11 (very precise) /Black=0.08 (flawless)} 1/2-1/2

[Event "Turkish Championship 2022"]
[Site "Kemer-Antalya"]
[Date "2022.11.29"]
[Round "5.2"]
[White "Gokbulut, Julia"]
[Black "Agdelen, Huseyin Can"]
[Result "0-1"]
[ECO "D21"]
[WhiteElo "1912"]
[BlackElo "2416"]
[Annotator "TA"]
[PlyCount "80"]
[EventDate "2022.11.25"]
[EventCountry "TUR"]
[SourceTitle "playchess.com"]
[Source "ChessBase"]
[SourceQuality "1"]
[TimeControl "40/5400+30:1800+30"]

{[%evp 9,80,-48,-12,-17,-5,-8,8,-31,-32,-47,27,-6,0,-66,-58,-58,-48,-93,-54,-56,-68,-67,-64,-87,-67,-67,-63,-108,-74,-122,-99,-109,-94,-95,-28,-41,-41,-41,-42,-43,-50,-57,-55,-51,-51,-119,-112,-105,-98,-180,-127,-146,-132,-169,-130,-243,-201,-189,-196,-262,-233,-214,-191,-746,-729,-687,-368,-29992,-29993,-29993,-29994,-29995,-29996]} 1. d4 d5 {[%cal Bd7d5,Bd5c4][%mdl 32]} 2. c4 dxc4 {[%emt 0:00:30]} 3. Nf3 {[%emt 0:02:00]} a6 {[%emt 0:02:30]} 4. a4 {[%emt 0:00:30]} Nc6 {[%emt 0:16:30]} 5. e4 {[%emt 0:05:30][%cal Be2e4,Be4e5][%mdl 32] [#]} Nf6 $146 {[%emt 0:07:30]} (5... Bg4 $5 {[%cal Rg4f3]} 6. d5 (6. Bxc4 e6 $11) 6... Na5 $15) ({Predecessor:} 5... Bg4 6. Bxc4 e6 7. Be3 Bxf3 8. gxf3 Qf6 9. e5 Qh4 10. f4 O-O-O 11. Nc3 Bc5 12. Ne2 Nxd4 13. Nxd4 Bxd4 {0-1 (37) Cofman,V (2205)-Vorobiov,E (2566) Neustadt an der Weinstrasse 2019}) 6. e5 {[%emt 0:03:30] D21: Queen's Gambit Accepted: 3 Nf3 sidelines.} Nd5 {[%emt 0:00:30]} 7. Bxc4 {[%emt 0:00:30]} Bg4 {[%emt 0:04:30]} 8. Be3 {[%emt 0:01:30] The position is equal.} (8. Nc3 $5 {[%cal Rc4d5]} e6 9. Nxd5 exd5 10. Be2 $11) 8... e6 {[%emt 0:03:30]} 9. O-O {[%emt 0:02:30]} f6 {[%emt 0:07:30]} (9... Bb4 $15) 10. exf6 {[%emt 0:04:30]} gxf6 {[%emt 0:00:30]} 11. Nbd2 {[%emt 0:01:30]} (11. Nc3 $11) 11... Rg8 $15 {[%emt 0:04:30]} 12. Kh1 {[%emt 0:07:30]} f5 {[%emt 0:05:30] Inhibits Ne4.} 13. Nb3 {[%emt 0:07:30]} Qf6 {[%emt 0:03:30]} 14. Bxd5 {[%emt 0:03:30]} exd5 {[%emt 0:00:00]} 15. Bf4 {[%emt 0:02:30] Strongly threatening Qe1+.} O-O-O {[%emt 0:01:00][%cal Ba8d8,Bd8d6,Bd6g6,Bg6g5,Bg5b5][%mdl 32] Active counter play!} 16. Rc1 {[%emt 0:01:30][%cal Ob3a5]} Bd6 {[%emt 0:12:30]} 17. Bxd6 {[%emt 0:00:30]} Rxd6 {[%emt 0:00:00]} 18. Qd3 {[%emt 0:08:30][%cal Of3e5]} f4 {[%emt 0:11:58]} 19. Nbd2 {[%emt 0:12:30]} (19. Qxh7 $2 Rh8 20. Qd3 Qg7 $17) ({Better is} 19. Nc5) 19... Bf5 {[%emt 0:02:10]} 20. Qc3 {[%emt 0:03:30]} Qg7 {[%emt 0:00:44][%csl Gg8][%cal Rg7g2]} 21. Rg1 {[%emt 0:04:30]} Be4 $40 {[%emt 0:03:55][%mdl 128] Black has some attack.} (21... a5 $1 $17) 22. b4 {[%emt 0:08:20]} Rg6 {[%emt 0:01:06][%cal Rg6g2]} 23. Nxe4 {[%emt 0:08:19]} (23. b5 Rxg2 24. Nxe4 dxe4 $19) 23... dxe4 {[%emt 0:00:15]} 24. Nh4 {[%emt 0:03:59]} Rg5 {[%emt 0:00:11] ...f3 is the strong threat.} 25. b5 $1 {[%emt 0:01:16] Against f3} axb5 {[%emt 0:00:41]} (25... Nxd4 26. bxa6 b6 27. Rgd1 $11) 26. axb5 {[%emt 0:00:03]} Rxb5 {[%emt 0:00:02]} 27. Ra1 {[%emt 0:00:45] [#]} ({White should play} 27. Qc4 $1 $15 Qg5 28. Rb1 Rxb1 29. Rxb1) 27... Rd8 $1 $17 {[%emt 0:01:46]} (27... Nxd4 $2 28. Ra8+ Kd7 29. Rxg8 Qxg8 30. Qxd4+ Qd5 31. Qg7+ Kc8 32. Qxh7 $18) 28. Ra8+ {[%emt 0:01:26] [#]} Nb8 $1 {[%emt 0:00:13]} ({Much worse is} 28... Kd7 $6 29. Qh3+ Ke8 30. Qe6+ Qe7 31. Qg8+ Kd7 32. Qg4+ Qe6 33. Rxd8+ Nxd8 34. Qxf4 $11) 29. Ra4 {[%emt 0:01:58]} (29. Qc4 $17 {might work better.} Rh5 30. g3) 29... Qe7 {[%emt 0:05:12]} (29... Qg4 $19 30. g3 e3) 30. Rc1 {[%emt 0:01:02]} c6 {[%emt 0:00:22]} (30... Qxh4 $2 31. Qxc7#) 31. Qh3+ {[%emt 0:01:05]} Qd7 {[%emt 0:00:59] Hoping for ...Qxh3.} 32. Qc3 {[%emt 0:00:06]} (32. g4 $17) 32... Qg4 {[%emt 0:00:23]} 33. g3 {[%emt 0:00:35]} e3 {[%emt 0:00:20]} 34. Kg2 {[%emt 0:02:36]} (34. Qd3 $142 Rb2 35. Qf5+ Qxf5 36. Nxf5) 34... fxg3 {[%emt 0:01:16]} 35. hxg3 {[%emt 0:00:24]} exf2 {[%emt 0:02:18] The board is on fire.} 36. Kxf2 {[%emt 0:00:19]} (36. Qf3 Rg8 37. Qxg4+ Rxg4 38. Rc3) 36... Rf8+ $19 {[%emt 0:00:00]} ({But not} 36... Re8 $2 37. Qd3 Rb2+ 38. Rc2 Rxc2+ 39. Qxc2 $19) 37. Kg1 {[%emt 0:00:39]} Rh5 {[%emt 0:01:56]} ({Don't go for} 37... Qe2 $2 38. Qe1 Qg4 39. Rc2 $19) 38. Ng2 {[%emt 0:01:21]} (38. Rf1 $19 Rxf1+ 39. Kxf1) 38... Qh3 {[%emt 0:00:22][%csl Gh5][%cal Rh3h2] Black mates.} 39. Nf4 {[%emt 0:00:22] [#]} Rxf4 $1 {[%emt 0:01:05][%mdl 512]} 40. gxf4 {[%emt 0:00:00]} (40. Qxc6+ Nxc6) 40... Qg4+ {[%emt 0:00:00] Weighted Error Value: White=0.47/Black=0.25 (precise)} 0-1